{"text_format":"2","workbook":"xlsx","n_sheets":1,"sheets":["____ класс"],"not_rendered":{"charts":0,"images":0,"macros":0,"external_links":0,"defined_names":0,"comments":0,"pivot_tables":0},"unopened":[],"bounds":{"document_bytes":16777216,"sheet_cells":100000,"run_cost":"one","rows_first":2000,"rows_last":500,"rows_between":2000,"halvings":0,"cell_chars":16384,"cell_head_chars":4096},"cells_cut":0,"cells_raw":0,"read":"whole","date_system":"1900"}

{"sheet":"____ класс","index":0,"n_rows":43,"n_cols":19,"rows_kept":43,"cut":false,"hidden":false,"merged":[[9,0,9,14],[7,0,7,14],[8,0,8,10],[2,0,2,14],[4,0,4,14],[5,0,5,14],[6,0,6,14]]}
[]
[]
["Протокол школьного этапа этапа всероссийской олимпиады школьников по истории в 2019-2020 уч.г., 7 класс"]
[]
["Количество участников: 29"]
["Дата проведения: 24.09.2019"]
["Место проведения: г. Чебоксары, МБОУ \"Гимназия № 2\" г. Чебоксары"]
["Председатель жюри: Егорова Е.Б."]
["Члены жюри: Чугунова Н.Ю, Дмитриев А.Е., Мартыненко Д.Ю., Смирнова О.А."]
[]
[]
["№","Шифр","Ф.И.О. участника (полностью)","Город","Наименование ОО (сокращенное наименование по Уставу)","Ф.И.О. наставника (полностью)","Класс","Задание 1","Задание 2","Задание 3","Задание 4","Задание 5","Задание 6","Задание 7","Задание 8","ИТОГО БАЛЛОВ","МАКСИМАЛЬНЫЙ БАЛЛ","Эффективность участия (%)","Результат (победитель/призер/                                  участник)"]
[1,"И-7-6","Титов Тимофей Алексеевич","г. Чебоксары","МБОУ \"Гимназия №2\"","Чугунова Н.Ю.","7Б",4,4,2,2,2,8,12,24,{"$f":"SUM(H13:O13)","v":58},100,58,"призер"]
[2,"И-7-7","Тарвердиев Эльдар Рагимович","г. Чебоксары","МБОУ \"Гимназия №2\"","Чугунова Н.Ю.","7Б",4,4,2,2,0,7,12,24,{"$f":"SUM(H14:O14)","v":55},100,55,"призер"]
[3,"И-7-29","Якимова Софья Александровна","г. Чебоксары","МБОУ \"Гимназия №2\"","Мартыненко Д.Ю.","7А",4,1,3,6,0,8,12,16,{"$f":"SUM(H15:O15)","v":50},100,50,"призер"]
[4,"И-7-2","Соколов Антон Андреевич","г. Чебоксары","МБОУ \"Гимназия №2\"","Чугунова Н.Ю.","7Б",4,2,0,4,0,6,14,20,50,100,50,"призер"]
[5,"И-7-1"," Николаева Анжелика Сергеевна","г. Чебоксары","МБОУ \"Гимназия №2\"","Чугунова Н.Ю.","7Б",4,4,3,2,0,8,14,15,50,100,50,"призер"]
[6,"И-7-8","Лашманова Анастасия Олеговна","г. Чебоксары","МБОУ \"Гимназия №2\"","Чугунова Н.Ю.","7Б",4,3,3,2,0,7,14,15,{"$f":"SUM(H18:O18)","v":48},100,48]
[7,"И-7-3","Тарасов Егор Сергеевич","г. Чебоксары","МБОУ \"Гимназия №2\"","Чугунова Н.Ю.","7Б",4,2,0,2,5,5,12,13,43,100,43]
[8,"И-7-19","Васильева Виктория Николаевна","г. Чебоксары","МБОУ \"Гимназия №2\"","Мартыненко Д.Ю.","7А",6,1,0,2,2,7,14,9,41,100,41]
[9,"И-7-9","Иванова Иулитта Алексеевна","г. Чебоксары","МБОУ \"Гимназия №2\"","Мартыненко Д.Ю.","7В",4,2,0,4,5,7,10,7,39,100,39]
[10,"И-7-10","Никифорова Ксения Александровна","г. Чебоксары","МБОУ \"Гимназия №2\"","Мартыненко Д.Ю.","7В",4,0,0,4,5,6,10,7,36,100,36]
[11,"И-7-11","Семенов Артем Евгеньевич","г. Чебоксары","МБОУ \"Гимназия №2\"","Мартыненко Д.Ю.","7В",4,0,2,4,0,6,10,10,36,100,36]
[12,"И-7-28","Чистякова Яна Михайловна","г. Чебоксары","МБОУ \"Гимназия №2\"","Мартыненко Д.Ю.","7А",4,1,0,6,0,6,10,9,36,100,3.6]
[13,"И-7-18","Тюмерова Наталья Владимировна","г. Чебоксары","МБОУ \"Гимназия №2\"","Мартыненко Д.Ю.","7А",4,1,0,2,0,5,14,9,35,100,35]
[14,"И-7-12","Балятин Илья Александрович","г. Чебоксары","МБОУ \"Гимназия №2\"","Мартыненко Д.Ю.","7В",4,2,0,2,0,7,12,7,34,100,34]
[15,"И-7-15","Зубкова Анна Андреевна","г. Чебоксары","МБОУ \"Гимназия №2\"","Мартыненко Д.Ю.","7В",4,1,0,2,5,7,8,7,34,100,34]
[16,"И-7-20","Миллина Анастасия Юрьевна","г. Чебоксары","МБОУ \"Гимназия №2\"","Мартыненко Д.Ю.","7А",4,1,0,0,2,6,12,6,31,100,31]
[17,"И-7-25","Индубаев Никита Валерьевич","г. Чебоксары","МБОУ \"Гимназия №2\"","Мартыненко Д.Ю.","7А",2,1,0,0,0,8,10,9,30,100,30]
[18,"И-7-14","Степанова Снежана Васильевна","г. Чебоксары","МБОУ \"Гимназия №2\"","Мартыненко Д.Ю.","7В",6,1,0,2,0,6,6,7,28,100,28]
[19,"И-7-22","Платонова Мария Юрьевна","г. Чебоксары","МБОУ \"Гимназия №2\"","Мартыненко Д.Ю.","7А",2,2,0,0,0,7,10,6,27,100,27]
[20,"И-7-16","Зиновьева Ульяна Владимировна","г. Чебоксары","МБОУ \"Гимназия №2\"","Мартыненко Д.Ю.","7В",4,0,0,4,2,3,10,0,23,100,23]
[21,"И-7-24","Федотова Дарья Алексеевна","г. Чебоксары","МБОУ \"Гимназия №2\"","Мартыненко Д.Ю.","7А",2,1,0,4,0,4,6,6,23,100,23]
[22,"И-7-26","Яковлева Мария Валерьевна","г. Чебоксары","МБОУ \"Гимназия №2\"","Мартыненко Д.Ю.","7А",2,2,0,0,0,5,8,6,23,100,23]
[23,"И-7-5","Работский Тимур Павлович","г. Чебоксары","МБОУ \"Гимназия №2\"","Чугунова Н.Ю.","7Б",4,1,2,0,0,9,6,0,22,100,22]
[24,"И-7-23","Осипова Софья Андреевна","г. Чебоксары","МБОУ \"Гимназия №2\"","Мартыненко Д.Ю.","7А",2,1,0,0,0,6,6,6,21,100,21]
[25,"И-7-21","Скворцова Мария Евгеньевна ","г. Чебоксары","МБОУ \"Гимназия №2\"","Мартыненко Д.Ю.","7А",2,1,0,0,0,7,6,4,20,100,20]
[26,"И-7-17","Чмуневич Данил Русланович","г. Чебоксары","МБОУ \"Гимназия №2\"","Мартыненко Д.Ю.","7А",2,1,0,2,0,3,10,1,19,100,19]
[27,"И-7-4","Трофимов Александр Евгеньевич","г. Чебоксары","МБОУ \"Гимназия №2\"","Чугунова Н.Ю.","7Б",4,1,0,0,0,3,6,0,14,100,14]
[28,"И-7-13","Дианский Павел Вадимович","г. Чебоксары","МБОУ \"Гимназия №2\"","Мартыненко Д.Ю.","7В",4,1,0,0,0,3,6,0,14,100,14]
[29,"И-7-27","Зимина Анна Дмитриевна","г. Чебоксары","МБОУ \"Гимназия №2\"","Мартыненко Д.Ю.","7А",2,1,0,4,0,1,0,0,8,100,8]
[null,"Председатель жюри: "]
[null,"Члены жюри:"]